{"text_format":"1","workbook":"xlsx","n_sheets":2,"sheets":["УТ_Списки","Reqest"],"not_rendered":{"charts":0,"images":1,"macros":1,"external_links":0,"defined_names":0,"comments":0,"pivot_tables":0},"unopened":[],"bounds":{"document_bytes":16777216,"sheet_cells":100000,"rows_first":2000,"rows_last":500,"rows_between":2000,"halvings":0,"cell_chars":16384,"cell_head_chars":4096},"cells_cut":0,"cells_raw":0,"read":"whole","date_system":"1900"}

{"sheet":"УТ_Списки","index":0,"n_rows":10,"n_cols":21,"rows_kept":10,"cut":false,"hidden":true,"merged":[]}
["Прийняття_пропозицій",null,"Од.виміру",null,"Валюта",null,"Пропозиції",null,"Збір пропозицій",null,"Відповіді",null,"Строк",null,"Рішення",null,"ел.пошта",null,"Вибор у Analysis",null,"Вимоги"]
["a.usova@r2p.org.ua",null,"шт.",null,"USD",null,"e-mail",null,"Single e-mail",null,"Yes",null,"Yes",null,"Accept",null,"tender@r2p.org.ua",null,"Yes",null,"Does not meets the requirements"]
["i.kulikovska@r2p.org.ua",null,"пар.",null,"EUR",null,"tender platform Zakupki.prom.ua",null,"Dingle e-mail",null,"No",null,"No",null,"Reject",null,null,null,"No",null,"Meets the requirements"]
["i.trufanova@r2p.org.ua",null,"компл.",null,"UAH",null,null,null,"Two-stage qualification",null,"Not provided",null,null,null,null,null,null,null,"With clarifications"]
["m.yarotskiy@r2p.org.ua",null,"наб.",null,"GBP"]
["o.pashkova@r2p.org.ua",null,null,null,"PLN"]
["t.shevchuk@r2p.org.ua"]
["tender@r2p.org.ua"]
["y.moloshna@r2p.org.ua"]
["zakupki.prom.ua"]

{"sheet":"Reqest","index":1,"n_rows":457,"n_cols":16,"rows_kept":457,"cut":false,"hidden":false,"merged":[[373,2,377,4],[380,2,381,4],[379,5,381,12],[407,5,412,12],[419,2,429,4],[394,5,394,12],[395,5,395,12],[405,5,405,6],[365,2,366,4],[365,5,366,12],[368,2,369,4],[368,5,369,12],[438,5,444,12],[383,2,383,12],[385,2,385,12],[390,2,390,4],[389,5,390,12],[392,5,392,12],[397,5,400,12],[397,2,400,4],[393,5,393,12],[371,6,371,7],[370,6,370,7],[373,5,377,12],[452,2,454,5],[453,10,454,11],[456,2,457,12],[446,2,446,12],[402,5,404,12],[402,2,404,4],[407,2,412,3],[414,2,417,4],[414,5,417,12],[419,5,423,12],[424,5,430,12],[432,5,436,12],[432,2,436,4],[360,5,363,12],[346,2,346,3],[352,5,358,12],[352,2,358,4],[39,2,39,4],[39,5,39,12],[37,2,37,11],[18,3,19,4],[21,3,21,4],[23,5,23,6],[26,2,26,12],[28,2,30,12],[8,2,8,12],[10,2,10,12],[11,2,11,12],[15,3,16,4],[32,2,32,8],[32,9,32,10]]}
[]
[]
[]
[]
[]
[null,null,null,"Період: 2023 р."]
[]
[]
[null,null,"ЗАПРОШЕННЯ"]
[]
[null,null," ДО УЧАСТІ У ТЕНДЕРІ"]
[null,null," НА ОДНОРАЗОВУ ЗАКУПІВЛЮ БРОНЕЖИЛЕТІВ ТА ШОЛОМІВ"]
[]
[null,null,"Дата запиту:",null,"2023-05-01"]
[]
[null,null,null,"Дата закінчення\nприйняття пропозицій:"]
[null,null,null,null,null,null,"2023-05-08"]
[]
[null,null,null,"Час закінчення\nприйняття пропозицій:"]
[null,null,null,null,null,null,2359]
[]
[null,null,null,"Номер тендеру:",null,null,"№ Q2-T147-ITB"]
[]
[null,null,null,"Пропозиції приймаються:",null,"tender@r2p.org.ua"]
[]
[]
[null,null,"Коротко про БФ «Право на захист»:"]
[]
[null,null,"Благодійний Фонд «Право на захист» – українська благодійна організація, діяльність якої спрямована на захист і дотримання прав людини вразливих груп населення: біженців, вимушених переселенців, осіб без громадянства та осіб під ризиком без громадянства і без документів."]
[]
[]
[]
[null,null,"Докладна інформація про діяльність БФ «Право на захист» надана на веб-сайті:",null,null,null,null,null,null,"ttp://r2p.org.ua"]
[]
[null,null,null,"I. ПОТРЕБИ:",null,"БФ «Право на Захист» запрошує вас до участі в тендері на закупівлю"]
[null,null,null,null,null,"бронежилетів та касок "]
[]
[null,null,"Просимо запропонувати моделі з такими технічними характеристиками:"]
[]
[null,null,"Назва номенклатури",null,null,"Технічні вимоги / Характеристики",null,null,null,null,null,null,null,null,"Номер з/п","Кількість"]
["1.",null,"1.","Бронежилети"]
["2.",null,null,null,null,"1. Бронежилет 4-го класу"]
["3.",null,null,null,null,"2. Колір: чорний/ синій, НЕ камуфляжний"]
["4.",null,null,null,null,"3. Вага: не більше 7 кг"]
["5.",null,null,null,null,"4. Наявність бокового захисту"]
["6.",null,null,null,null,"5. Розмір універсальний"]
["7.",null,null,null,null,"6. Брендування не потрібне"]
["8."]
[null,null,null,null,null,null,null,null,null,"Загальна кількість:",null,10,"шт.",null,{"$f":"$C$41","v":"1."},{"$f":"IF($L$49=\"\",\"\",$L$49)","v":10}]
[null,{"$f":"IF(P49=\"\",\"-*-\",P49)","v":10}]
["1.",{"$f":"B52","v":10},"2.","Шоломи:"]
["2.",{"$f":"B53","v":10},null,null,null,"1. Шоломи мають закривати вуха"]
["3.",10,null,null,null,"2. Колір: чорний/ синій, НЕ камуфляжний"]
["4.",10,null,null,null,"3. Охват голови 54-60 см"]
["5.",10,null,null,null,"4. Вага: до 1,7 кг"]
["6.",10,null,null,null,"5. Матеріал:  бажано UHMWPE"]
["7.",10,null,null,null,"6. Брендування не потрібне"]
["8.",{"$f":"B59","v":10}]
[null,{"$f":"IF(P59=\"\",\"-*-\",P59)","v":10},null,null,null,null,null,null,null,"Загальна кількість:",null,10,"шт.",null,{"$f":"$C$51","v":"2."},{"$f":"IF($L$59=\"\",\"\",$L$59)","v":10}]
[null,{"$f":"B59","v":10}]
["1.",{"$f":"B62","v":"-*-"}]
["2.","-*-"]
["3.","-*-"]
["4.","-*-"]
["5.","-*-"]
["6.","-*-"]
["7.","-*-"]
["8.","-*-"]
[null,{"$f":"IF(P69=\"\",\"-*-\",P69)","v":"-*-"},null,null,null,null,null,null,null,"Загальна кількість:",null,null,"шт.",null,{"$f":"$C$61","v":0},{"$f":"IF($L$69=\"\",\"\",$L$69)","v":""}]
[null,{"$f":"B69","v":"-*-"}]
["1.",{"$f":"B72","v":"-*-"},"4.","Нова номенклатура"]
["2.","-*-",null,null,null,"Вказати технічні вимоги, характеристики, норми, ДСТУ, тощо."]
["3.","-*-"]
["4.","-*-"]
["5.","-*-"]
["6.","-*-"]
["7.","-*-"]
["8.","-*-"]
[null,{"$f":"IF(P79=\"\",\"-*-\",P79)","v":"-*-"},null,null,null,null,null,null,null,"Загальна кількість:",null,null,"шт.",null,{"$f":"$C$71","v":"4."},{"$f":"IF($L$79=\"\",\"\",$L$79)","v":""}]
[null,{"$f":"B79","v":"-*-"}]
["1.",{"$f":"B82","v":"-*-"},"5.","Нова номенклатура"]
["2.","-*-",null,null,null,"Вказати технічні вимоги, характеристики, норми, ДСТУ, тощо."]
["3.","-*-"]
["4.","-*-"]
["5.","-*-"]
["6.","-*-"]
["7.","-*-"]
["8.","-*-"]
[null,{"$f":"IF(P89=\"\",\"-*-\",P89)","v":"-*-"},null,null,null,null,null,null,null,"Загальна кількість:",null,null,"шт.",null,{"$f":"$C$81","v":"5."},{"$f":"IF($L$89=\"\",\"\",$L$89)","v":""}]
[null,{"$f":"B89","v":"-*-"}]
["1.",{"$f":"B92","v":"-*-"},"6.","Нова номенклатура"]
["2.","-*-",null,null,null,"Вказати технічні вимоги, характеристики, норми, ДСТУ, тощо."]
["3.","-*-"]
["4.","-*-"]
["5.","-*-"]
["6.","-*-"]
["7.","-*-"]
["8.","-*-"]
[null,{"$f":"IF(P99=\"\",\"-*-\",P99)","v":"-*-"},null,null,null,null,null,null,null,"Загальна кількість:",null,null,"шт.",null,{"$f":"$C$91","v":"6."},{"$f":"IF($L$99=\"\",\"\",$L$99)","v":""}]
[null,{"$f":"B99","v":"-*-"}]
["1.",{"$f":"B102","v":"-*-"},"7.","Нова номенклатура"]
["2.","-*-",null,null,null,"Вказати технічні вимоги, характеристики, норми, ДСТУ, тощо."]
["3.","-*-"]
["4.","-*-"]
["5.","-*-"]
["6.","-*-"]
["7.","-*-"]
["8.","-*-"]
[null,{"$f":"IF(P109=\"\",\"-*-\",P109)","v":"-*-"},null,null,null,null,null,null,null,"Загальна кількість:",null,null,"шт.",null,{"$f":"$C$101","v":"7."},{"$f":"IF($L$109=\"\",\"\",$L$109)","v":""}]
[null,{"$f":"B109","v":"-*-"}]
["1.",{"$f":"B112","v":"-*-"},"8.","Нова номенклатура"]
["2.","-*-",null,null,null,"Вказати технічні вимоги, характеристики, норми, ДСТУ, тощо."]
["3.","-*-"]
["4.","-*-"]
["5.","-*-"]
["6.","-*-"]
["7.","-*-"]
["8.","-*-"]
[null,{"$f":"IF(P119=\"\",\"-*-\",P119)","v":"-*-"},null,null,null,null,null,null,null,"Загальна кількість:",null,null,"шт.",null,{"$f":"$C$111","v":"8."},{"$f":"IF($L$119=\"\",\"\",$L$119)","v":""}]
[null,{"$f":"B119","v":"-*-"}]
["1.",{"$f":"B122","v":"-*-"},"9.","Нова номенклатура"]
["2.","-*-",null,null,null,"Вказати технічні вимоги, характеристики, норми, ДСТУ, тощо."]
["3.","-*-"]
["4.","-*-"]
["5.",{"$f":"B126","v":"-*-"}]
["6.","-*-"]
["7.","-*-"]
["8.","-*-"]
[null,{"$f":"IF(P129=\"\",\"-*-\",P129)","v":"-*-"},null,null,null,null,null,null,null,"Загальна кількість:",null,null,"шт.",null,{"$f":"$C$121","v":"9."},{"$f":"IF($L$129=\"\",\"\",$L$129)","v":""}]
[null,{"$f":"B129","v":"-*-"}]
["1.",{"$f":"B132","v":"-*-"},"10.","Нова номенклатура"]
["2.","-*-",null,null,null,"Вказати технічні вимоги, характеристики, норми, ДСТУ, тощо."]
["3.","-*-"]
["4.","-*-"]
["5.","-*-"]
["6.","-*-"]
["7.","-*-"]
["8.","-*-"]
[null,{"$f":"IF(P139=\"\",\"-*-\",P139)","v":"-*-"},null,null,null,null,null,null,null,"Загальна кількість:",null,null,"шт.",null,{"$f":"$C$131","v":"10."},{"$f":"IF($L$139=\"\",\"\",$L$139)","v":""}]
[null,{"$f":"B139","v":"-*-"}]
["1.",{"$f":"B142","v":"-*-"},"11.","Нова номенклатура"]
["2.","-*-",null,null,null,"Вказати технічні вимоги, характеристики, норми, ДСТУ, тощо."]
["3.","-*-"]
["4.","-*-"]
["5.","-*-"]
["6.","-*-"]
["7.","-*-"]
["8.","-*-"]
[null,{"$f":"IF(P149=\"\",\"-*-\",P149)","v":"-*-"},null,null,null,null,null,null,null,"Загальна кількість:",null,null,"шт.",null,{"$f":"$C$141","v":"11."},{"$f":"IF($L$149=\"\",\"\",$L$149)","v":""}]
[null,{"$f":"B149","v":"-*-"}]
["1.",{"$f":"B152","v":"-*-"},"12.","Нова номенклатура"]
["2.","-*-",null,null,null,"Вказати технічні вимоги, характеристики, норми, ДСТУ, тощо."]
["3.","-*-"]
["4.","-*-"]
["5.","-*-"]
["6.","-*-"]
["7.","-*-"]
["8.","-*-"]
[null,{"$f":"IF(P159=\"\",\"-*-\",P159)","v":"-*-"},null,null,null,null,null,null,null,"Загальна кількість:",null,null,"шт.",null,{"$f":"$C$151","v":"12."},{"$f":"IF($L$159=\"\",\"\",$L$159)","v":""}]
[null,{"$f":"B159","v":"-*-"}]
["1.",{"$f":"B162","v":"-*-"},"13.","Нова номенклатура"]
["2.","-*-",null,null,null,"Вказати технічні вимоги, характеристики, норми, ДСТУ, тощо."]
["3.","-*-"]
["4.","-*-"]
["5.","-*-"]
["6.","-*-"]
["7.","-*-"]
["8.","-*-"]
[null,{"$f":"IF(P169=\"\",\"-*-\",P169)","v":"-*-"},null,null,null,null,null,null,null,"Загальна кількість:",null,null,"шт.",null,{"$f":"$C$161","v":"13."},{"$f":"IF($L$169=\"\",\"\",$L$169)","v":""}]
[null,{"$f":"B169","v":"-*-"}]
["1.",{"$f":"B172","v":"-*-"},"14.","Нова номенклатура"]
["2.","-*-",null,null,null,"Вказати технічні вимоги, характеристики, норми, ДСТУ, тощо."]
["3.","-*-"]
["4.","-*-"]
["5.","-*-"]
["6.","-*-"]
["7.","-*-"]
["8.","-*-"]
[null,{"$f":"IF(P179=\"\",\"-*-\",P179)","v":"-*-"},null,null,null,null,null,null,null,"Загальна кількість:",null,null,"шт.",null,{"$f":"$C$171","v":"14."},{"$f":"IF($L$179=\"\",\"\",$L$179)","v":""}]
[null,{"$f":"B179","v":"-*-"}]
["1.",{"$f":"B182","v":"-*-"},"15.","Нова номенклатура"]
["2.","-*-",null,null,null,"Вказати технічні вимоги, характеристики, норми, ДСТУ, тощо."]
["3.","-*-"]
["4.","-*-"]
["5.","-*-"]
["6.","-*-"]
["7.","-*-"]
["8.","-*-"]
[null,{"$f":"IF(P189=\"\",\"-*-\",P189)","v":"-*-"},null,null,null,null,null,null,null,"Загальна кількість:",null,null,"шт.",null,{"$f":"$C$181","v":"15."},{"$f":"IF($L$189=\"\",\"\",$L$189)","v":""}]
[null,{"$f":"B189","v":"-*-"}]
["1.",{"$f":"B192","v":"-*-"},"16.","Нова номенклатура"]
["2.","-*-",null,null,null,"Вказати технічні вимоги, характеристики, норми, ДСТУ, тощо."]
["3.","-*-"]
["4.","-*-"]
["5.","-*-"]
["6.","-*-"]
["7.","-*-"]
["8.","-*-"]
[null,{"$f":"IF(P199=\"\",\"-*-\",P199)","v":"-*-"},null,null,null,null,null,null,null,"Загальна кількість:",null,null,"шт.",null,{"$f":"$C$191","v":"16."},{"$f":"IF($L$199=\"\",\"\",$L$199)","v":""}]
[null,{"$f":"B199","v":"-*-"}]
["1.",{"$f":"B202","v":"-*-"},"17.","Нова номенклатура"]
["2.","-*-",null,null,null,"Вказати технічні вимоги, характеристики, норми, ДСТУ, тощо."]
["3.","-*-"]
["4.","-*-"]
["5.","-*-"]
["6.","-*-"]
["7.","-*-"]
["8.","-*-"]
[null,{"$f":"IF(P209=\"\",\"-*-\",P209)","v":"-*-"},null,null,null,null,null,null,null,"Загальна кількість:",null,null,"шт.",null,{"$f":"$C$201","v":"17."},{"$f":"IF($L$209=\"\",\"\",$L$209)","v":""}]
[null,{"$f":"B209","v":"-*-"}]
["1.",{"$f":"B212","v":"-*-"},"18.","Нова номенклатура"]
["2.","-*-",null,null,null,"Вказати технічні вимоги, характеристики, норми, ДСТУ, тощо."]
["3.","-*-"]
["4.","-*-"]
["5.","-*-"]
["6.","-*-"]
["7.","-*-"]
["8.","-*-"]
[null,{"$f":"IF(P219=\"\",\"-*-\",P219)","v":"-*-"},null,null,null,null,null,null,null,"Загальна кількість:",null,null,"шт.",null,{"$f":"$C$211","v":"18."},{"$f":"IF($L$219=\"\",\"\",$L$219)","v":""}]
[null,{"$f":"B219","v":"-*-"}]
["1.",{"$f":"B222","v":"-*-"},"19.","Нова номенклатура"]
["2.","-*-",null,null,null,"Вказати технічні вимоги, характеристики, норми, ДСТУ, тощо."]
["3.","-*-"]
["4.","-*-"]
["5.","-*-"]
["6.","-*-"]
["7.","-*-"]
["8.","-*-"]
[null,{"$f":"IF(P229=\"\",\"-*-\",P229)","v":"-*-"},null,null,null,null,null,null,null,"Загальна кількість:",null,null,"шт.",null,{"$f":"$C$221","v":"19."},{"$f":"IF($L$229=\"\",\"\",$L$229)","v":""}]
[null,{"$f":"B229","v":"-*-"}]
["1.",{"$f":"B232","v":"-*-"},"20.","Нова номенклатура"]
["2.","-*-",null,null,null,"Вказати технічні вимоги, характеристики, норми, ДСТУ, тощо."]
["3.","-*-"]
["4.","-*-"]
["5.","-*-"]
["6.","-*-"]
["7.","-*-"]
["8.","-*-"]
[null,{"$f":"IF(P239=\"\",\"-*-\",P239)","v":"-*-"},null,null,null,null,null,null,null,"Загальна кількість:",null,null,"шт.",null,{"$f":"$C$231","v":"20."},{"$f":"IF($L$239=\"\",\"\",$L$239)","v":""}]
[null,{"$f":"B239","v":"-*-"}]
["1.",{"$f":"B242","v":"-*-"},"21.","Нова номенклатура"]
["2.","-*-",null,null,null,"Вказати технічні вимоги, характеристики, норми, ДСТУ, тощо."]
["3.","-*-"]
["4.","-*-"]
["5.","-*-"]
["6.","-*-"]
["7.","-*-"]
["8.","-*-"]
[null,{"$f":"IF(P249=\"\",\"-*-\",P249)","v":"-*-"},null,null,null,null,null,null,null,"Загальна кількість:",null,null,"шт.",null,{"$f":"$C$241","v":"21."},{"$f":"IF($L$249=\"\",\"\",$L$249)","v":""}]
[null,{"$f":"B249","v":"-*-"}]
["1.",{"$f":"B252","v":"-*-"},"22.","Нова номенклатура"]
["2.","-*-",null,null,null,"Вказати технічні вимоги, характеристики, норми, ДСТУ, тощо."]
["3.","-*-"]
["4.","-*-"]
["5.",{"$f":"B256","v":"-*-"}]
["6.","-*-"]
["7.","-*-"]
["8.","-*-"]
[null,{"$f":"IF(P259=\"\",\"-*-\",P259)","v":"-*-"},null,null,null,null,null,null,null,"Загальна кількість:",null,null,"шт.",null,{"$f":"$C$251","v":"22."},{"$f":"IF($L$259=\"\",\"\",$L$259)","v":""}]
[null,{"$f":"B259","v":"-*-"}]
["1.",{"$f":"B262","v":"-*-"},"23.","Нова номенклатура"]
["2.","-*-",null,null,null,"Вказати технічні вимоги, характеристики, норми, ДСТУ, тощо."]
["3.","-*-"]
["4.","-*-"]
["5.","-*-"]
["6.","-*-"]
["7.","-*-"]
["8.","-*-"]
[null,{"$f":"IF(P269=\"\",\"-*-\",P269)","v":"-*-"},null,null,null,null,null,null,null,"Загальна кількість:",null,null,"шт.",null,{"$f":"$C$261","v":"23."},{"$f":"IF($L$269=\"\",\"\",$L$269)","v":""}]
[null,{"$f":"B269","v":"-*-"}]
["1.",{"$f":"B272","v":"-*-"},"24.","Нова номенклатура"]
["2.","-*-",null,null,null,"Вказати технічні вимоги, характеристики, норми, ДСТУ, тощо."]
["3.","-*-"]
["4.","-*-"]
["5.","-*-"]
["6.","-*-"]
["7.","-*-"]
["8.","-*-"]
[null,{"$f":"IF(P279=\"\",\"-*-\",P279)","v":"-*-"},null,null,null,null,null,null,null,"Загальна кількість:",null,null,"шт.",null,{"$f":"$C$271","v":"24."},{"$f":"IF($L$279=\"\",\"\",$L$279)","v":""}]
[null,{"$f":"B279","v":"-*-"}]
["1.",{"$f":"B282","v":"-*-"},"25.","Нова номенклатура"]
["2.","-*-",null,null,null,"Вказати технічні вимоги, характеристики, норми, ДСТУ, тощо."]
["3.","-*-"]
["4.","-*-"]
["5.","-*-"]
["6.","-*-"]
["7.","-*-"]
["8.","-*-"]
[null,{"$f":"IF(P289=\"\",\"-*-\",P289)","v":"-*-"},null,null,null,null,null,null,null,"Загальна кількість:",null,null,"шт.",null,{"$f":"$C$281","v":"25."},{"$f":"IF($L$289=\"\",\"\",$L$289)","v":""}]
[null,{"$f":"B289","v":"-*-"}]
["1.",{"$f":"B292","v":"-*-"},"26.","Нова номенклатура"]
["2.","-*-",null,null,null,"Вказати технічні вимоги, характеристики, норми, ДСТУ, тощо."]
["3.","-*-"]
["4.","-*-"]
["5.","-*-"]
["6.","-*-"]
["7.","-*-"]
["8.","-*-"]
[null,{"$f":"IF(P299=\"\",\"-*-\",P299)","v":"-*-"},null,null,null,null,null,null,null,"Загальна кількість:",null,null,"шт.",null,{"$f":"$C$291","v":"26."},{"$f":"IF($L$299=\"\",\"\",$L$299)","v":""}]
[null,{"$f":"B299","v":"-*-"}]
["1.",{"$f":"B302","v":"-*-"},"27.","Нова номенклатура"]
["2.","-*-",null,null,null,"Вказати технічні вимоги, характеристики, норми, ДСТУ, тощо."]
["3.","-*-"]
["4.","-*-"]
["5.","-*-"]
["6.","-*-"]
["7.","-*-"]
["8.","-*-"]
[null,{"$f":"IF(P309=\"\",\"-*-\",P309)","v":"-*-"},null,null,null,null,null,null,null,"Загальна кількість:",null,null,"шт.",null,{"$f":"$C$301","v":"27."},{"$f":"IF($L$309=\"\",\"\",$L$309)","v":""}]
[null,{"$f":"B309","v":"-*-"}]
["1.",{"$f":"B312","v":"-*-"},"28.","Нова номенклатура"]
["2.","-*-",null,null,null,"Вказати технічні вимоги, характеристики, норми, ДСТУ, тощо."]
["3.","-*-"]
["4.","-*-"]
["5.","-*-"]
["6.","-*-"]
["7.","-*-"]
["8.","-*-"]
[null,{"$f":"IF(P319=\"\",\"-*-\",P319)","v":"-*-"},null,null,null,null,null,null,null,"Загальна кількість:",null,null,"шт.",null,{"$f":"$C$311","v":"28."},{"$f":"IF($L$319=\"\",\"\",$L$319)","v":""}]
[null,{"$f":"B319","v":"-*-"}]
["1.",{"$f":"B322","v":"-*-"},"29.","Нова номенклатура"]
["2.","-*-",null,null,null,"Вказати технічні вимоги, характеристики, норми, ДСТУ, тощо."]
["3.","-*-"]
["4.","-*-"]
["5.","-*-"]
["6.","-*-"]
["7.","-*-"]
["8.","-*-"]
[null,{"$f":"IF(P329=\"\",\"-*-\",P329)","v":"-*-"},null,null,null,null,null,null,null,"Загальна кількість:",null,null,"шт.",null,{"$f":"$C$321","v":"29."},{"$f":"IF($L$329=\"\",\"\",$L$329)","v":""}]
[null,{"$f":"B329","v":"-*-"}]
["1.",{"$f":"B332","v":"-*-"},"30.","Нова номенклатура"]
["2.","-*-",null,null,null,"Вказати технічні вимоги, характеристики, норми, ДСТУ, тощо."]
["3.","-*-"]
["4.","-*-"]
["5.","-*-"]
["6.","-*-"]
["7.","-*-"]
["8.","-*-"]
[null,{"$f":"IF(P339=\"\",\"-*-\",P339)","v":"-*-"},null,null,null,null,null,null,null,"Загальна кількість:",null,null,"шт.",null,{"$f":"$C$331","v":"30."},{"$f":"IF($L$339=\"\",\"\",$L$339)","v":""}]
[null,{"$f":"B339","v":"-*-"}]
[null,null,null,"Загальна кількість"]
[null,null,null,"номенклатури:",{"$f":"COUNTIF($P$41:$P$139,\">0\")","v":2}]
[null,null,null,"одиниць:",{"$f":"SUM($P$41:$P$139)","v":20}]
[]
[null,null,"Оплата ",null,null,"виключно безготівкова та у національній валюті"]
[]
[null,null,"Умови оплати:",null,null,0.7,"передплата",0.3,"післяоплата "]
[]
[]
[null,null,"Доставка:",null,null,"Доставка буде здійснюватися Новою Поштою, за рахунок замовника."]
[null,null,null,null,null,"м.Київ, вул.Сковороди 21/16"]
[]
[null,null,"Коментар щодо доставки:",null,null,"ОБОВ'ЯЗКОВО!\n1. Просимо вказувати строки доставки.\n2. Товар повинен бути в наявності.\n3. Якщо Ви не маєте можливості зарезервувати за нами товар до кінця терміну подачі пропозицій, надішліть свою комерційну пропозицію в останній день тендеру. Ми докладемо всіх зусиль, щоб надати відповідь на наступний день!"]
[]
[]
[]
[]
[]
[]
[]
[null,null,null,null,null,"БФ «Право на Захист» запрошує вас до участі в тендері на закупівлю:бронежелетів та шоломів"]
[null,null,null,"II. ПРОПОЗИЦІЯ:"]
[]
[]
[]
[null,null,"Для участі в тендері просимо надати:",null,null,"терміни, протягом яких замовлення буде доставлене за адресою:\nм. Київ, вул. Сковороди, 21/16"]
[]
[]
[null,null,"Подання тендерної пропозиції:",null,null,"Просимо надіслати Вашу пропозицію не пізніше: "]
[]
[null,null,null,null,null,"Час",2359]
[null,null,null,null,null,"День","2023-05-08"]
[]
[null,null,"Примітка: ",null,null,"Просимо дуже уважно ознайомитись з цим Запрошенням до участі в тендері та його Додатками. Недотримання процедур, описаних в ньому, призведе до дискваліфікації в ході оцінки пропозицій. Цей документ в жодному разі не може вважатися пропозицією на укладення договору з Вашою організацією."]
[]
[]
[]
[]
[]
[]
[null,null,"Інформація про тендер:"]
[]
[]
[null,null,"ДОКУМЕНТИ, ЯКІ СКЛАДАЮТЬ ЗАПРОШЕННЯ ДО УЧАСТІ У ТЕНДЕРІ "]
[]
[null,null,"Зазначені нижче додатки є невід’ємною частиною цього Запрошення до участі у тендері: \n"]
[null,null,null,null,null,"Додаток A: Технічна пропозиція та супроводжуючі документи; "]
[null,null,null,null,null,"Додаток B: Ваша комерційна/фінансова пропозиція."]
[]
[null,null,null,null,null,"Просимо письмово повідомити нам про згоду на участь у тендері або про відмову."]
[null,null,"Підтвердження:"]
[]
[null,null,"Пропозиція:",null,null,"Ваша пропозиція повинна містити:"]
[null,null,null,null,null,"1. Заповнений Додаток А (Технічна специфікація)."]
[null,null,null,null,null,"2. Заповнений Додаток В (Форма фінансової пропозиції)."]
[null,null,null,null,null,"3. Ваші реєстраційні документи"]
[]
[null,null,"Подання тендерної пропозиції:",null,null,"Пропозиції слід подавати електронною поштою, при цьому всі додатки повинні надаватися у форматі PDF (як додаток, можна надіслати копії цих документів також у форматі Excel або в інших форматах). "]
[]
[]
[]
[]
[null,null,"Запити на роз’яснення:",null,null,"Учасникам тендеру пропонується подавати запити на роз’яснення щодо Запрошення до Участі у конкурсі Усовій Анні електронною поштою на адресу "]
[]
[]
[null,null,null,null,null,"tender@r2p.org.ua"]
[]
[null,null,"ВАЖЛИВО!",null,null,"Фінансову пропозицію (Додаток В) та технічну пропозицію (Додатки A) необхідно надіслати двома окремими електронними листами. \nТобто, перший лист (підписаний- Фінансова пропозиція), що включає в себе Додаток В; \nдругий лист (підписаний- Технічна пропозиція), що включає в себе Додаток А."]
[]
[]
[]
[]
[]
[]
[null,null,"Зміст технічної пропозиції",null,null,"У Технічну пропозицію не слід включати інформацію про ціни. Невиконання цієї вимоги потягне за собою дискваліфікацію. Технічна пропозиція повинна містити всю потрібну інформацію. \n"]
[]
[]
[]
[]
[null,null,"Зміст фінансової пропозиції",null,null," Ваша фінансова пропозиція повинна подаватися згідно з Формою фінансової пропозиції (Додаток В). \nФінансова пропозиція, надіслана окремим електронним листом, повинна містити цінову пропозицію в одній валюті – гривня. \n"]
[]
[]
[]
[]
[null,null,null,null,null,"Просимо зберігати чинність своєї пропозиції протягом 20 днів, починаючи з дати закінчення прийняття тендерних пропозицій. БФ «Право на захист» зробить усе можливе для вибору компанії за цей період. Цінова модель, наведена у пропозиції постачальника залишатиметься чинною протягом всього терміну дії угоди. \n"]
[]
[]
[]
[]
[]
[]
[]
[null,null,"Оцінка тендерних пропозицій:",null,null,"Найбільш оптимальна за вартістю пропозиція, яка відповідає умовам Запрошення до участі в тендері, буде рекомендована для укладання договору."]
[]
[]
[]
[]
[]
[null,null,null,null,null,"БФ «Право на захист» може на власний розгляд продовжити термін подання тендерних пропозицій, повідомивши про це можливих учасників тендеру одночасно. Продовження терміну може супроводжувати внесення змін у документи про запрошення до участі у тендері, підготовлені БФ «Право на захист» за його власною ініціативою чи у відповідь на запит щодо роз’яснення, надісланий можливим постачальником."]
[]
[]
[]
[]
[]
[]
[]
[null,null,"Дякуємо за співробітництво!"]
[]
[]
[]
[]
[]
[null,null,"З повагою,\nПрезидент БФ «Право на Захист»    "]
[null,null,null,null,null,null,null,null,null,null,"   Галкін О.Ю"]
[]
[]
[null,null,"Hryhoriya Skovorody, 21/16 str.∙ Kyiv 04070, Ukraine"]